fUST/lending_fUST_20250720
["ID","MTS","AMOUNT","RATE_DAILY","PERIOD"]
[373382741,1752979844374,-509.12110116,0.00019321,2]
[373382742,1752979844383,-4872.15893033,0.00019329,2]
[373382743,1752979844393,-207.4,0.00019357,2]
[373382744,1752979844402,-550.1,0.0001938,2]
[373382745,1752979844412,-460.0,0.0001938,2]
[373382746,1752979844421,-460.0,0.0001938,2]
[373382747,1752979844430,-757.38,0.0001938,2]
[373382748,1752979844439,-460.0,0.0001938,2]
[373382749,1752979844448,-460.0,0.0001938,2]
[373382750,1752979844457,-460.0,0.0001938,2]
[373382751,1752979844466,-460.0,0.0001938,2]
[373382753,1752979844476,-460.0,0.0001938,2]
[373382755,1752979844485,-1537.01,0.0001938,2]
[373382756,1752979844495,-460.0,0.0001938,2]
[373382757,1752979844504,-460.0,0.0001938,2]
[373382758,1752979844513,-7794.36221865,0.00019383,2]
[373382759,1752979844522,-460.0,0.00019385,2]
[373382760,1752979844531,-460.0,0.00019385,2]
[373382761,1752979844542,-460.0,0.00019385,2]
[373382762,1752979844553,-460.0,0.00019386,2]
[373382763,1752979844561,-460.0,0.00019386,2]
[373382764,1752979844571,-460.0,0.00019386,2]
[373382765,1752979844580,-493.75,0.00019386,2]
[373382766,1752979844590,-460.0,0.00019386,2]
[373382767,1752979844600,-4454.12,0.00019386,2]
[373382768,1752979844609,-460.0,0.00019387,2]
[373382769,1752979844621,-460.0,0.00019387,2]
[373382770,1752979844630,-1409.85,0.00019389,2]
[373382771,1752979844640,-460.0,0.00019391,2]
[373382772,1752979844649,-943.29,0.00019391,2]
[373382773,1752979844659,-541.62,0.00019391,2]
[373382774,1752979844667,-460.0,0.00019391,2]
[373382775,1752979844678,-460.0,0.00019392,2]
[373382776,1752979844689,-498.4,0.00019392,2]
[373382777,1752979844698,-152.40371447,0.00019423,2]
[373382778,1752979844708,-151.66254631,0.00019423,2]
[373382779,1752979844717,-153.49975317,0.00019423,2]
[373382780,1752979844727,-267.564017,0.0001949,2]
[373382781,1752979844736,-239.89632253,0.00019553,2]
[373382782,1752979844745,-477.9,0.00019553,2]
[373382783,1752979844755,-509.90586633,0.00019554,2]
[373382784,1752979844765,-533.98,0.00019554,2]
[373382785,1752979844774,-460.0,0.00019554,2]
[373382786,1752979844785,-460.0,0.00019554,2]
[373382787,1752979844794,-581.34848106,0.00019554,2]
[373382788,1752979844804,-460.0,0.00019554,2]
[373382789,1752979844813,-460.0,0.00019554,2]
[373382790,1752979844823,-460.0,0.00019554,2]
[373382791,1752979844833,-414.83540922,0.00019554,2]
[373382792,1752979844842,-460.0,0.00019554,2]
[373382793,1752979844853,-460.0,0.00019554,2]
[373382794,1752979844862,-460.0,0.00019554,2]
[373382795,1752979844872,-7794.36221865,0.00019624,2]
[373382796,1752979844883,-550.1,0.00019654,2]
[373382797,1752979844892,-460.0,0.00019654,2]
[373382798,1752979844904,-460.0,0.00019654,2]
[373382799,1752979844914,-757.38,0.00019654,2]
[373382800,1752979844924,-479.54308358,0.00019654,2]
[373382801,1752979844934,-460.0,0.00019654,2]
[373382802,1752979844943,-460.0,0.00019654,2]
[373382803,1752979844952,-460.0,0.00019654,2]
[373382804,1752979844964,-460.0,0.00019654,2]
[373382805,1752979844983,-1537.01,0.00019654,2]
[373382806,1752979844992,-460.0,0.00019654,2]
[373382807,1752979845002,-460.0,0.00019654,2]
[373382808,1752979845011,-190.36018853,0.00019659,2]
[373382809,1752979845020,-460.0,0.0001966,2]
[373382810,1752979845030,-460.0,0.0001966,2]
[373382811,1752979845039,-493.75,0.0001966,2]
[373382812,1752979845048,-486.54822584,0.0001966,2]
[373382813,1752979845058,-4454.12,0.0001966,2]
[373382814,1752979845068,-460.0,0.00019661,2]
[373382815,1752979845078,-460.0,0.00019661,2]
[373382816,1752979845087,-1409.85,0.00019663,2]
[373382817,1752979845097,-460.0,0.00019665,2]
[373382818,1752979845106,-943.29,0.00019665,2]
[373382819,1752979845115,-541.62,0.00019665,2]
[373382820,1752979845124,-460.0,0.00019665,2]
[373382822,1752979845133,-460.0,0.00019666,2]
[373382823,1752979845143,-498.4,0.00019666,2]
[373382824,1752979845152,-653.4531379,0.00019715,2]
[373382825,1752979845162,-476.42619115,0.0001982,2]
[373382826,1752979845172,-160.0,0.0001982,2]
[373382827,1752979845182,-230.98123516,0.0001982,2]
[373382828,1752979845191,-160.0,0.0001982,2]
[373382829,1752979845201,-839.59621281,0.0001982,2]
[373382830,1752979845210,-214.5637056,0.0001982,2]
[373382831,1752979845219,-215.71456056,0.0001982,2]
[373382832,1752979845228,-160.0,0.0001982,2]
[373382833,1752979845239,-160.0,0.0001982,2]
[373382834,1752979845248,-160.0,0.0001982,2]
[373382835,1752979845258,-525.91036056,0.0001982,2]
[373382836,1752979845269,-160.0,0.0001982,2]
[373382837,1752979845279,-160.0,0.0001982,2]
[373382838,1752979845289,-12615.16111038,0.0001982,2]
[373382839,1752979845298,-477.9,0.00019827,2]
[373382840,1752979845308,-533.98,0.00019828,2]
[373382841,1752979845321,-460.0,0.00019828,2]
[373382842,1752979845332,-460.0,0.00019828,2]
[373382843,1752979845342,-161.82780063,0.00019828,2]
[373382844,1752979845351,-460.0,0.00019828,2]
[373382845,1752979845360,-460.0,0.00019828,2]
[373382846,1752979845369,-460.0,0.00019828,2]
[373382847,1752979845378,-476.52681994,0.00019828,2]
[373382848,1752979845388,-7794.36221865,0.00019866,2]
[373382849,1752979845397,-550.1,0.00019928,2]
[373382850,1752979845406,-276.11894036,0.00019928,2]
[373382851,1752979845415,-481.27129361,0.00019928,2]
[373382852,1752979845424,-757.38,0.00019928,2]
[373382853,1752979845433,-460.0,0.00019928,2]
[373382854,1752979845443,-460.0,0.00019928,2]
[373382855,1752979845451,-460.0,0.00019928,2]
[373382856,1752979845461,-546.06407736,0.00019928,2]
[373382857,1752979845470,-1537.01,0.00019928,2]
[373382858,1752979845479,-460.0,0.00019928,2]
[373382859,1752979845489,-460.0,0.00019934,2]
[373382860,1752979845498,-460.0,0.00019934,2]
[373382861,1752979845509,-493.75,0.00019934,2]
[373382862,1752979845518,-4454.12,0.00019934,2]
[373382863,1752979845530,-460.0,0.00019935,2]
[373382864,1752979845539,-1409.85,0.00019937,2]
[373382865,1752979845548,-460.0,0.00019939,2]
[373382866,1752979845558,-943.29,0.00019939,2]
[373382867,1752979845567,-541.62,0.00019939,2]
[373382868,1752979845576,-216.9909928,0.00019939,2]
[373382869,1752979845585,-460.0,0.0001994,2]
[373382870,1752979845594,-498.4,0.0001994,2]
[373382871,1752979845603,-500.0,0.00019973,2]
[373382872,1752979845612,-500.0,0.00019973,2]
[373382873,1752979845622,-199175.63663977,0.0001998,2]
[373382874,1752979845631,-160.0,0.00020066,2]
[373382875,1752979845640,-477.9,0.00020101,2]
[373382876,1752979845649,-714.0,0.00020102,3]
[373382877,1752979845658,-357.0,0.00020102,3]
[373382878,1752979845668,-533.98,0.00020102,2]
[373382879,1752979845678,-308.28565607,0.00020102,2]
[373382880,1752979845687,-460.0,0.00020102,2]
[373382881,1752979845696,-460.0,0.00020102,2]
[373382882,1752979845707,-460.0,0.00020102,2]
[373382883,1752979845716,-460.0,0.00020102,2]
[373382884,1752979845726,-7794.36221865,0.00020107,2]
[373382885,1752979845735,-168.518692,0.00020187,2]
[373382886,1752979845744,-550.1,0.00020202,2]
[373382887,1752979845753,-757.38,0.00020202,2]
[373382888,1752979845762,-460.0,0.00020202,2]
[373382889,1752979845771,-473.50366505,0.00020202,2]
[373382890,1752979845781,-1537.01,0.00020202,2]
[373382891,1752979845790,-460.0,0.00020202,2]
[373382892,1752979845800,-460.0,0.00020208,2]
[373382893,1752979845809,-460.0,0.00020208,2]
[373382894,1752979845818,-493.75,0.00020208,2]
[373382895,1752979845827,-4454.12,0.00020208,2]
[373382896,1752979845837,-460.0,0.00020209,2]
[373382897,1752979845847,-1409.85,0.00020211,2]
[373382898,1752979845856,-460.0,0.00020213,2]
[373382899,1752979845984,-943.29,0.00020213,2]
[373382900,1752979845994,-541.62,0.00020213,2]
[373382901,1752979846003,-460.0,0.00020214,2]
[373382902,1752979846013,-498.4,0.00020214,2]
[373382903,1752979846022,-152.00772128,0.00020245,2]
[373382904,1752979846031,-245.59116657,0.00020245,2]
[373382905,1752979846040,-151.44820991,0.00020245,2]
[373382906,1752979846050,-151.0,0.00020245,2]
[373382907,1752979846060,-500.0,0.00020245,2]
[373382908,1752979846069,-500.0,0.00020245,2]
[373382909,1752979846080,-153.05023504,0.00020245,2]
[373382910,1752979846092,-7794.36221865,0.00020348,3]
[373382911,1752979846102,-477.9,0.00020375,2]
[373382912,1752979846112,-533.98,0.00020376,2]
[373382913,1752979846124,-460.0,0.00020376,2]
[373382914,1752979846135,-460.0,0.00020376,2]
[373382915,1752979846144,-284.71016636,0.00020376,2]
[373382916,1752979846154,-492.80023351,0.00020376,2]
[373382917,1752979846163,-550.1,0.00020476,2]
[373382918,1752979846173,-757.38,0.00020476,2]
[373382919,1752979846183,-529.06632325,0.00020476,2]
[373382920,1752979846192,-1537.01,0.00020476,2]
[373382921,1752979846202,-460.0,0.00020476,2]
[373382922,1752979846211,-460.0,0.00020482,2]
[373382923,1752979846220,-460.0,0.00020482,2]
[373382924,1752979846230,-493.75,0.00020482,2]
[373382925,1752979846240,-4454.12,0.00020482,2]
[373382926,1752979846249,-433.7395544,0.00020483,2]
[373382927,1752979846261,-1409.85,0.00020485,2]
[373382928,1752979846272,-460.0,0.00020487,2]
[373382929,1752979846281,-943.29,0.00020487,2]
[373382930,1752979846291,-541.62,0.00020487,2]
[373382931,1752979846301,-460.0,0.00020488,2]
[373382932,1752979846310,-498.4,0.00020488,2]
[373382933,1752979846322,-500.0,0.00020519,2]
[373382934,1752979846331,-500.0,0.00020519,2]
[373382935,1752979846341,-1000.0,0.00020521,2]
[373382936,1752979846351,-1000.0,0.00020521,2]
[373382937,1752979846362,-500.0,0.00020547,2]
[373382938,1752979846371,-500.0,0.00020547,2]
[373382939,1752979846381,-500.0,0.00020547,2]
[373382940,1752979846393,-500.0,0.00020547,2]
[373382941,1752979846402,-500.0,0.00020547,2]
[373382942,1752979846412,-500.0,0.00020547,2]
[373382943,1752979846421,-500.0,0.00020547,2]
[373382944,1752979846430,-500.0,0.00020547,2]
[373382945,1752979846440,-7794.36221865,0.0002059,3]
[373382946,1752979846450,-476.42619115,0.0002059,3]
[373382947,1752979846460,-214.5637056,0.0002059,3]
[373382948,1752979846469,-12615.16111038,0.0002059,3]
[373382949,1752979846480,-260.0,0.00020614,2]
[373382950,1752979846489,-477.9,0.00020649,2]
[373382951,1752979846499,-533.98,0.0002065,2]
[373382952,1752979846716,-460.0,0.0002065,2]
[373382953,1752979846726,-460.0,0.0002065,2]
[373382954,1752979846735,-215.0738,0.00020726,2]
[373382955,1752979846744,-550.1,0.0002075,2]
[373382956,1752979846753,-757.38,0.0002075,2]
[373382957,1752979846763,-1537.01,0.0002075,2]
[373382958,1752979846772,-460.0,0.0002075,2]
[373382959,1752979846781,-500.0,0.00020755,2]
[373382960,1752979846790,-460.0,0.00020756,2]
[373382961,1752979846799,-460.0,0.00020756,2]
[373382962,1752979846808,-493.75,0.00020756,2]
[373382963,1752979846818,-4454.12,0.00020756,2]
[373382964,1752979846826,-653.4531379,0.00020758,2]
[373382965,1752979846835,-1409.85,0.00020759,2]
[373382966,1752979846845,-460.0,0.00020761,2]
[373382967,1752979846854,-943.29,0.00020761,2]
[373382968,1752979846863,-541.62,0.00020761,2]
[373382969,1752979846872,-460.0,0.00020762,2]
[373382970,1752979846882,-498.4,0.00020762,2]
[373382971,1752979846891,-1160.425,0.00020779,2]
[373382972,1752979846901,-178.70934786,0.00020779,2]
[373382973,1752979846911,-500.0,0.00020793,2]
[373382974,1752979846922,-500.0,0.00020793,2]
[373382975,1752979846931,-587.0,0.00020814,2]
[373382976,1752979846940,-7794.36221865,0.00020831,4]
[373382977,1752979846950,-477.9,0.00020923,2]
[373382978,1752979846959,-533.98,0.00020924,2]
[373382979,1752979846971,-460.0,0.00020924,2]
[373382980,1752979846981,-460.0,0.00020924,2]
[373382981,1752979846990,-550.1,0.00021024,2]
[373382982,1752979846999,-757.38,0.00021024,2]
[373382983,1752979847008,-1537.01,0.00021024,2]
[373382984,1752979847018,-460.0,0.00021024,2]
[373382985,1752979847027,-500.0,0.00021029,2]
[373382986,1752979847036,-460.0,0.0002103,2]
[373382987,1752979847045,-441.53016635,0.0002103,2]
[373382988,1752979847054,-493.75,0.0002103,2]
[373382989,1752979847063,-4454.12,0.0002103,2]
[373382990,1752979847072,-1409.85,0.00021033,2]
[373382991,1752979847090,-460.0,0.00021035,2]
[373382992,1752979847101,-943.29,0.00021035,2]
[373382993,1752979847111,-541.62,0.00021035,2]
[373382994,1752979847121,-460.0,0.00021036,2]
[373382995,1752979847131,-498.4,0.00021036,2]
[373382996,1752979847140,-500.0,0.00021064,2]
[373382997,1752979847150,-500.0,0.00021067,2]
[373382998,1752979847160,-500.0,0.00021067,2]
[373382999,1752979847170,-7794.36221865,0.00021072,4]
[373383000,1752979847180,-360.0,0.00021162,2]
[373383001,1752979847190,-477.9,0.00021197,2]
[373383002,1752979847199,-533.98,0.00021198,2]
[373383003,1752979847209,-579.14249376,0.00021198,2]
[373383004,1752979847219,-460.0,0.00021198,2]
[373383005,1752979847228,-500.0,0.0002124,2]
[373383006,1752979847239,-500.0,0.0002124,2]
[373383007,1752979847249,-550.1,0.00021298,2]
[373383008,1752979847258,-757.38,0.00021298,2]
[373383009,1752979847269,-1537.01,0.00021298,2]
[373383010,1752979847279,-460.0,0.00021298,2]
[373383011,1752979847288,-500.0,0.00021303,2]
[373383012,1752979847298,-460.0,0.00021304,2]
[373383013,1752979847308,-493.75,0.00021304,2]
[373383014,1752979847319,-4454.12,0.00021304,2]
[373383015,1752979847331,-1409.85,0.00021307,2]
[373383016,1752979847341,-460.0,0.00021309,2]
[373383017,1752979847351,-943.29,0.00021309,2]
[373383018,1752979847360,-541.62,0.00021309,2]
[373383019,1752979847370,-460.0,0.0002131,2]
[373383020,1752979847380,-498.4,0.0002131,2]
[373383021,1752979847390,-7794.36221865,0.00021314,5]
[373383022,1752979847400,-500.0,0.00021341,2]
[373383023,1752979847409,-500.0,0.00021341,2]
[373383024,1752979847419,-500.0,0.00021367,2]
[373383025,1752979847428,-1241.7886414,0.00021401,2]
[373383026,1752979847437,-477.9,0.00021471,2]
[373383027,1752979847447,-533.98,0.00021472,2]
[373383028,1752979847457,-460.0,0.00021472,2]
[373383029,1752979847467,-7794.36221865,0.00021555,5]
[373383030,1752979847476,-550.1,0.00021572,2]
[373383031,1752979847485,-757.38,0.00021572,2]
[373383032,1752979847495,-1537.01,0.00021572,2]
[373383033,1752979847504,-460.0,0.00021572,2]
[373383034,1752979847514,-500.0,0.00021577,2]
[373383035,1752979847523,-460.0,0.00021578,2]
[373383036,1752979847533,-493.75,0.00021578,2]
[373383037,1752979847543,-4454.12,0.00021578,2]
[373383038,1752979847552,-1409.85,0.00021581,2]
[373383039,1752979847561,-460.0,0.00021583,2]
[373383040,1752979847571,-943.29,0.00021583,2]
[373383041,1752979847580,-541.62,0.00021583,2]
[373383042,1752979847590,-460.0,0.00021584,2]
[373383043,1752979847600,-498.4,0.00021584,2]
[373383044,1752979847609,-500.0,0.00021615,2]
[373383045,1752979847619,-500.0,0.00021615,2]
[373383046,1752979847628,-266.27073169,0.00021709,2]
[373383047,1752979847637,-477.9,0.00021745,2]
[373383048,1752979847646,-533.98,0.00021746,2]
[373383049,1752979847656,-222.288037,0.00021746,2]
[373383050,1752979847665,-174.44900746,0.00021788,2]
[373383051,1752979847675,-7794.36221865,0.00021797,6]
[373383052,1752979847685,-653.4531379,0.000218,2]
[373383053,1752979847694,-550.1,0.00021846,2]
[373383054,1752979847704,-757.38,0.00021846,2]
[373383055,1752979847714,-1537.01,0.00021846,2]
[373383056,1752979847724,-460.0,0.00021846,2]
[373383057,1752979847733,-500.0,0.00021851,2]
[373383058,1752979847742,-460.0,0.00021852,2]
[373383059,1752979847751,-493.75,0.00021852,2]
[373383060,1752979847760,-4454.12,0.00021852,2]
[373383061,1752979847770,-1409.85,0.00021855,2]
[373383062,1752979847779,-460.0,0.00021857,2]
[373383063,1752979847789,-943.29,0.00021857,2]
[373383064,1752979847799,-541.62,0.00021857,2]
[373383065,1752979847808,-460.0,0.00021858,2]
[373383066,1752979847818,-498.4,0.00021858,2]
[373383067,1752979847828,-500.0,0.00021889,2]
[373383068,1752979847838,-266.86276745,0.00021889,2]
[373383069,1752979847848,-1000.0,0.00021915,2]
[373383070,1752979847860,-500.0,0.00021917,2]
[373383071,1752979847870,-500.0,0.00021917,2]
[373383072,1752979847879,-500.0,0.00021917,2]
[373383073,1752979847889,-500.0,0.00021917,2]
[373383074,1752979847899,-500.0,0.00021917,2]
[373383075,1752979847908,-192.28591105,0.00021917,2]
[373383076,1752979847918,-150.09319079,0.00021918,2]
[373383077,1752979847928,-160.0,0.00022,2]
[373383078,1752979847937,-7000.0,0.00022,5]
[373383079,1752979847946,-477.9,0.00022019,2]
[373383080,1752979847956,-533.98,0.0002202,2]
[373383081,1752979847966,-7794.36221865,0.00022038,6]
[373383082,1752979847975,-223.0315306,0.00022095,2]
[373383083,1752979847986,-550.1,0.0002212,2]
[373383084,1752979847995,-757.38,0.0002212,2]
[373383085,1752979848006,-1537.01,0.0002212,2]
[373383086,1752979848015,-460.0,0.0002212,2]
[373383087,1752979848024,-460.0,0.00022126,2]
[373383088,1752979848034,-493.75,0.00022126,2]
[373383089,1752979848044,-4454.12,0.00022126,2]
[373383090,1752979848054,-1409.85,0.00022129,2]
[373383091,1752979848063,-220.32105152,0.00022131,2]
[373383092,1752979848073,-943.29,0.00022131,2]
[373383093,1752979848083,-541.62,0.00022131,2]
[373383094,1752979848092,-307.43204387,0.00022132,2]
[373383095,1752979848102,-498.4,0.00022132,2]
[373383096,1752979848111,-500.0,0.0002216,2]
[373383097,1752979848121,-408.73243802,0.00022163,2]
[373383098,1752979848130,-199.825654,0.00022186,3]
[373383099,1752979848141,-500.0,0.00022275,2]
[373383100,1752979848150,-7794.36221865,0.00022279,6]
[373383101,1752979848160,-477.9,0.00022293,2]
[373383102,1752979848169,-533.98,0.00022294,2]
[373383103,1752979848179,-647.0,0.00022354,2]
[373383104,1752979848188,-2156.0,0.00022354,2]
[373383105,1752979848198,-968.0,0.00022354,2]
[373383106,1752979848207,-550.1,0.00022394,2]
[373383107,1752979848218,-757.38,0.00022394,2]
[373383108,1752979848228,-1537.01,0.00022394,2]
[373383109,1752979848239,-460.0,0.00022394,2]
[373383110,1752979848249,-460.0,0.000224,2]
[373383111,1752979848259,-493.75,0.000224,2]
[373383112,1752979848269,-4454.12,0.000224,2]
[373383113,1752979848279,-1409.85,0.00022403,2]
[373383114,1752979848289,-943.29,0.00022405,2]
[373383115,1752979848299,-541.62,0.00022405,2]
[373383116,1752979848308,-498.4,0.00022406,2]
[373383117,1752979848318,-1355.54,0.000225,2]
[373383118,1752979848331,-7794.36221865,0.00022521,7]
[373383119,1752979848341,-477.9,0.00022567,2]
[373383120,1752979848351,-533.98,0.00022568,2]
[373383121,1752979848360,-550.1,0.00022668,2]
[373383122,1752979848370,-757.38,0.00022668,2]
[373383123,1752979848380,-1537.01,0.00022668,2]
[373383124,1752979848390,-460.0,0.00022674,2]
[373383125,1752979848401,-493.75,0.00022674,2]
[373383126,1752979848412,-4454.12,0.00022674,2]
[373383127,1752979848421,-1409.85,0.00022677,2]
[373383128,1752979848430,-151.610802,0.00022678,3]
[373383129,1752979848440,-943.29,0.00022679,2]
[373383130,1752979848450,-541.62,0.00022679,2]
[373383131,1752979848459,-498.4,0.0002268,2]
[373383132,1752979848468,-823.0,0.00022723,2]
[373383133,1752979848479,-7794.36221865,0.00022762,7]
[373383134,1752979848488,-214.5637056,0.000228,7]
[373383135,1752979848497,-477.9,0.00022841,2]
[373383136,1752979848507,-533.98,0.00022842,2]
[373383137,1752979848517,-159.8396335,0.00022849,2]
[373383138,1752979848526,-577.2483964,0.00022849,2]
[373383139,1752979848535,-159.8396335,0.00022849,2]
[373383140,1752979848544,-577.2483964,0.00022849,2]
[373383141,1752979848553,-178.1416697,0.00022849,2]
[373383142,1752979848563,-159.8396335,0.00022849,2]
[373383143,1752979848572,-577.2483964,0.00022849,2]
[373383144,1752979848582,-178.1416697,0.00022849,2]
[373383145,1752979848592,-577.2483964,0.00022849,2]
[373383146,1752979848601,-577.2483964,0.00022849,2]
[373383147,1752979848611,-652.4361839,0.00022877,2]
[373383148,1752979848620,-358.8747986,0.00022877,2]
[373383149,1752979848629,-322.0120142,0.00022877,2]
[373383150,1752979848639,-577.1515091,0.00022877,2]
[373383151,1752979848648,-159.8396335,0.00022877,2]
[373383152,1752979848658,-178.1416697,0.00022877,2]
[373383153,1752979848668,-159.8396335,0.00022877,2]
[373383154,1752979848677,-178.1416697,0.00022877,2]
[373383155,1752979848687,-159.8396335,0.00022877,2]
[373383156,1752979848696,-159.7311335,0.00022877,2]
[373383157,1752979848706,-178.1416697,0.00022877,2]
[373383158,1752979848716,-178.1416697,0.00022877,2]
[373383159,1752979848726,-178.1416697,0.00022877,2]
[373383160,1752979848735,-355.5168786,0.00022877,2]
[373383161,1752979848744,-17672.96712411,0.00022929,3]
[373383162,1752979848753,-550.1,0.00022942,2]
[373383163,1752979848764,-757.38,0.00022942,2]
[373383164,1752979848775,-1537.01,0.00022942,2]
[373383165,1752979848784,-460.0,0.00022948,2]
[373383166,1752979848794,-493.75,0.00022948,2]
[373383167,1752979848804,-4454.12,0.00022948,2]
[373383168,1752979848814,-1409.85,0.00022951,2]
[373383169,1752979848824,-943.29,0.00022953,2]
[373383170,1752979848834,-541.62,0.00022953,2]
[373383171,1752979848844,-498.4,0.00022954,2]
[373383172,1752979848853,-160.0,0.00023,3]
[373383173,1752979848863,-151.610802,0.00023,15]
[373383174,1752979848872,-151.610802,0.00023,15]
[373383175,1752979848882,-215.71456056,0.00023,3]
[373383176,1752979848891,-160.0,0.00023,3]
[373383177,1752979848902,-839.59621281,0.00023,3]
[373383178,1752979848911,-525.91036056,0.00023,3]
[373383179,1752979848922,-7794.36221865,0.00023003,8]
[373383180,1752979848932,-160.0,0.00023014,7]
[373383181,1752979848942,-379.12622,0.00023029,8]
[373383182,1752979848952,-250.0,0.00023078,2]
[373383183,1752979848962,-429.4514592,0.00023096,2]
[373383184,1752979848972,-429.4514592,0.00023096,2]
[373383185,1752979848983,-429.4514592,0.00023096,2]
[373383186,1752979849123,-429.4514592,0.00023096,2]
[373383187,1752979849133,-429.4514592,0.00023096,2]
[373383188,1752979849143,-429.4514592,0.00023096,2]
[373383189,1752979849153,-429.4514592,0.00023096,2]
[373383190,1752979849163,-429.4514592,0.00023096,2]
[373383191,1752979849172,-477.9,0.00023115,2]
[373383192,1752979849182,-533.98,0.00023116,2]
[373383193,1752979849191,-550.1,0.00023216,2]
[373383194,1752979849201,-757.38,0.00023216,2]
[373383195,1752979849210,-1537.01,0.00023216,2]
[373383196,1752979849220,-460.0,0.00023222,2]
[373383197,1752979849229,-493.75,0.00023222,2]
[373383198,1752979849239,-4454.12,0.00023222,2]
[373383199,1752979849250,-1409.85,0.00023225,2]
[373383200,1752979849260,-943.29,0.00023227,2]
[373383201,1752979849269,-541.62,0.00023227,2]
[373383202,1752979849279,-498.4,0.00023228,2]
[373383203,1752979849289,-7794.36221865,0.00023245,8]
[373383204,1752979849298,-500.0,0.00023256,2]
[373383205,1752979849307,-500.0,0.0002326,2]
[373383206,1752979849318,-151.610802,0.00023316,14]
[373383207,1752979849331,-306.0,0.0002337,2]
[373383208,1752979849343,-154.7328928,0.0002337,2]
[373383209,1752979849352,-160.6051998,0.0002337,2]
[373383210,1752979849361,-153.3382709,0.0002337,2]
[373383211,1752979849371,-1000.0,0.00023371,2]
[373383212,1752979849380,-477.9,0.00023389,2]
[373383213,1752979849390,-533.98,0.0002339,2]
[373383214,1752979849399,-500.82510006,0.000234,2]
[373383215,1752979849409,-2200.0,0.000234,2]
[373383216,1752979849419,-151.610802,0.00023422,14]
[373383217,1752979849429,-231.28369723,0.00023464,2]
[373383218,1752979849438,-7794.36221865,0.00023486,9]
[373383219,1752979849447,-550.1,0.0002349,2]
[373383220,1752979849457,-757.38,0.0002349,2]
[373383221,1752979849466,-1537.01,0.0002349,2]
[373383222,1752979849475,-460.0,0.00023496,2]
[373383223,1752979849485,-493.75,0.00023496,2]
[373383224,1752979849495,-4454.12,0.00023496,2]
[373383225,1752979849505,-1409.85,0.00023499,2]
[373383226,1752979849514,-274420.78734256,0.000235,4]
[373383227,1752979849711,-460.0,0.00022668,2]
[373383228,1752979849721,-360.5113758,0.00022942,2]
[373383229,1752979849733,-173.59964158,0.00022942,2]
[373383230,1752979849742,-114.71499336,0.000235,4]
[373383231,1752979849752,-1000.0,0.000235,2]
[373383232,1752979849761,-661.98869106,0.000235,7]
[373383233,1752979849772,-1069.03893575,0.000235,7]
[373383234,1752979849783,-993.62090136,0.000235,7]
[373383235,1752979849794,-3252.15131913,0.000235,7]
[373383236,1752979849807,-2660.3001527,0.000235,7]
[373383237,1752979849817,-488.16340287,0.000235,2]
[373383238,1752979849827,-1051.7135517,0.000235,4]
[373383239,1752979850000,-462.55340806,0.00018457,2]
[373383240,1752979850010,-460.0,0.00018458,2]
[373383241,1752979850019,-173.01717281,0.00018563,2]
[373383242,1752979850031,-286.98282719,0.00018563,2]
[373383243,1752979850040,-201.46555789,0.00018568,2]